bitfinex/quotes_BTCUSD_20251205
["timestamp","ask_amount","ask_price","bid_price","bid_amount"]
[1764899584482,0.26532932,92401.0,92400.0,0.0034]
[1764899585092,0.26532932,92401.0,92380.0,0.0004]
[1764899585093,0.2164713,92391.0,92380.0,0.0004]
[1764899585300,0.22656885,92391.0,92380.0,0.0004]
[1764899585493,0.22656885,92391.0,92381.0,0.01082473]
[1764899585737,0.22656885,92391.0,92380.0,0.0004]
[1764899585896,0.22656885,92391.0,92381.0,0.01082473]
[1764899586102,0.22656885,92391.0,92380.0,0.0004]
[1764899587152,0.22756885,92391.0,92390.0,0.0074]
[1764899587866,0.22756885,92391.0,92390.0,0.00779927]
[1764899588923,0.22756885,92391.0,92382.0,0.01082461]
[1764899589126,0.01082391,92388.0,92384.0,0.2164877]
[1764899589445,0.01082391,92388.0,92382.0,0.01094414]
[1764899589446,0.01082426,92385.0,92382.0,0.01094414]
[1764899589648,0.01009755,92384.0,92382.0,0.01094414]
[1764899589849,0.01009755,92383.0,92382.0,0.22743418]
[1764899590027,0.01009755,92383.0,92382.0,0.00011953]
[1764899590636,0.01009755,92383.0,92382.0,0.21661192]
[1764899590990,0.01009755,92383.0,92382.0,0.02455953]
[1764899591186,0.22658759,92383.0,92382.0,0.01655953]
[1764899591388,0.01009755,92383.0,92382.0,0.01655953]
[1764899591541,0.01009755,92383.0,92382.0,0.00011953]
[1764899592097,0.22658759,92383.0,92382.0,0.00011953]
[1764899592464,0.22758759,92383.0,92382.0,0.00511953]
[1764899593035,0.01109755,92383.0,92382.0,0.00511953]
[1764899593410,0.03414198,92383.0,92382.0,0.22161192]
[1764899593774,0.03414198,92383.0,92382.0,0.00511953]
[1764899593978,0.03414198,92383.0,92380.0,0.22772028]
[1764899594195,0.001,92383.0,92382.0,0.21649239]
[1764899594406,0.0330656,92383.0,92382.0,0.21649239]
[1764899594771,0.0330656,92383.0,92381.0,0.22731946]
[1764899594900,0.0330656,92383.0,92380.0,0.01130669]
[1764899594901,0.0330656,92382.0,92380.0,0.2278027]
[1764899595122,0.0330656,92381.0,92380.0,0.2278027]
[1764899595759,0.0330656,92381.0,92380.0,0.2442427]
[1764899596218,0.0360656,92381.0,92380.0,0.2452427]
[1764899597392,0.06498669,92381.0,92380.0,0.2452427]
[1764899597993,0.06498669,92381.0,92380.0,0.2699427]
[1764899598199,0.0650484,92381.0,92380.0,0.2699427]
[1764899598413,0.0360656,92381.0,92380.0,0.2699427]
[1764899599350,0.0360656,92381.0,92380.0,0.25546821]
[1764899599706,0.0360656,92381.0,92380.0,0.25633232]
[1764899602370,0.0360656,92381.0,92380.0,0.21519232]
[1764899603266,0.0360656,92381.0,92380.0,0.25633232]
[1764899604290,0.0360656,92381.0,92380.0,0.23163232]
[1764899604842,0.0360656,92381.0,92380.0,0.25633232]
[1764899605904,0.0360656,92381.0,92380.0,0.23163232]
[1764899606066,0.0360656,92381.0,92380.0,0.25633232]
[1764899611523,0.01300727,92381.0,92380.0,0.25633232]
[1764899612886,0.01300727,92381.0,92380.0,0.27793232]
[1764899613088,0.01311908,92381.0,92380.0,0.27793232]
[1764899615330,0.003,92381.0,92380.0,0.27793232]
[1764899617823,0.003,92381.0,92380.0,0.60093232]
[1764899623188,0.003,92381.0,92380.0,0.61805232]
[1764899623883,0.003,92381.0,92380.0,0.67639324]
[1764899624092,0.003,92381.0,92380.0,0.65927324]
[1764899624267,0.003,92381.0,92380.0,0.67639324]
[1764899624469,0.003,92381.0,92380.0,0.61805232]
[1764899625831,0.0216639,92404.0,92403.0,0.21644318]
[1764899627411,0.15,92405.0,92404.0,0.21644084]
[1764899628611,0.156,92405.0,92404.0,0.23414084]
[1764899629233,0.156,92405.0,92404.0,0.21844084]
[1764899629671,0.156,92405.0,92404.0,0.23414084]
[1764899632222,0.156,92405.0,92404.0,0.25770084]
[1764899637110,0.156,92405.0,92404.0,0.23414084]
[1764899637271,0.156,92405.0,92404.0,0.25770084]
[1764899638332,0.156,92405.0,92404.0,0.58070084]
[1764899638628,0.156,92405.0,92404.0,0.60230084]
[1764899639393,0.15,92405.0,92404.0,0.60030084]
[1764899639791,0.155,92405.0,92404.0,0.23414084]
[1764899639995,0.155,92405.0,92404.0,0.21844084]
[1764899643469,0.155,92405.0,92404.0,0.002]
[1764899643675,0.3714385,92405.0,92404.0,0.002]
[1764899644378,0.155,92405.0,92404.0,0.21844084]
[1764899646849,0.155,92405.0,92404.0,0.23414084]
[1764899647062,0.155,92405.0,92404.0,0.21844084]
[1764899666040,0.155,92405.0,92404.0,0.002]
[1764899666456,0.155,92405.0,92404.0,0.21844084]
[1764899667533,0.155,92405.0,92404.0,0.002]
[1764899667534,0.3714385,92405.0,92404.0,0.002]
[1764899670095,0.38155608,92405.0,92404.0,0.002]
[1764899671062,0.21644318,92403.0,92402.0,0.00023037]
[1764899672088,0.3362661,92403.0,92402.0,0.00023037]
[1764899673305,0.3392661,92403.0,92402.0,0.00023037]
[1764899673710,0.22956104,92403.0,92402.0,0.00023037]
[1764899673918,0.24456104,92403.0,92402.0,0.00023037]
[1764899675447,0.02811786,92403.0,92402.0,0.00023037]
[1764899675659,0.02811786,92403.0,92402.0,0.2166759]
[1764899675896,0.02811786,92403.0,92402.0,0.00023037]
[1764899676076,0.02811786,92403.0,92402.0,0.2166759]
[1764899677412,0.02811786,92403.0,92402.0,0.00023037]
[1764899677589,0.24456104,92403.0,92402.0,0.00023037]
[1764899678000,0.02811786,92403.0,92402.0,0.00023037]
[1764899678261,0.24456104,92403.0,92402.0,0.00023037]
[1764899678426,0.23444318,92403.0,92402.0,0.00023037]
[1764899679044,0.018,92403.0,92402.0,0.00023037]
[1764899679425,0.23444318,92403.0,92402.0,0.00023037]
[1764899680283,0.33278297,92403.0,92402.0,0.00023037]
[1764899683422,0.24455636,92403.0,92402.0,0.00023037]
[1764899684126,0.02811318,92403.0,92402.0,0.00023037]
[1764899684327,0.23444318,92403.0,92402.0,0.00023037]
[1764899684549,0.24455369,92403.0,92402.0,0.00023037]
[1764899685431,0.02811051,92403.0,92402.0,0.00023037]
[1764899685900,0.24455369,92403.0,92402.0,0.00023037]
[1764899687034,0.35425875,92403.0,92402.0,0.00023037]
[1764899688463,0.24455369,92403.0,92402.0,0.00023037]
[1764899692319,0.02811051,92403.0,92402.0,0.2166759]
[1764899693251,0.018,92403.0,92402.0,0.2166759]
[1764899693762,0.018,92403.0,92402.0,0.00023037]
[1764899693912,0.24455611,92403.0,92402.0,0.00023037]
[1764899694116,0.02811293,92403.0,92402.0,0.2166759]
[1764899694802,0.24455611,92403.0,92402.0,0.00023037]
[1764899696771,0.35426117,92403.0,92402.0,0.00023037]
[1764899696970,0.36508379,92403.0,92402.0,0.00023037]
[1764899698534,0.25537873,92403.0,92402.0,0.00023037]
[1764899699894,0.27245873,92403.0,92402.0,0.00023037]
[1764899700471,0.25537873,92403.0,92402.0,0.00023037]
[1764899700681,0.27245873,92403.0,92402.0,0.00023037]
[1764899702670,0.25537873,92403.0,92402.0,0.00023037]
[1764899705269,0.03893555,92403.0,92402.0,0.00023037]
[1764899705466,0.02811293,92403.0,92402.0,0.2166759]
[1764899705823,0.02811293,92403.0,92402.0,0.00023037]
[1764899706148,0.02811293,92403.0,92402.0,0.2166759]
[1764899706747,0.02811293,92403.0,92402.0,0.2561059]
[1764899706748,0.018,92403.0,92402.0,0.2561059]
[1764899707956,0.018,92403.0,92402.0,0.2777059]
[1764899708760,0.018,92403.0,92402.0,0.2561059]
[1764899717241,0.018,92403.0,92402.0,0.6007059]
[1764899717425,0.018,92403.0,92402.0,0.65027546]
[1764899718030,0.015,92403.0,92402.0,0.65027546]
[1764899718238,0.0216639,92429.0,92428.0,0.21638464]
[1764899719373,0.02206268,92429.0,92428.0,0.21638464]
[1764899720682,0.02806268,92429.0,92428.0,0.21838464]
[1764899721522,0.02806268,92429.0,92428.0,0.002]
[1764899722884,0.24444498,92429.0,92428.0,0.002]
[1764899723042,0.02806268,92429.0,92428.0,0.002]
[1764899723239,0.02806268,92429.0,92428.0,0.21838464]
[1764899724663,0.02806268,92429.0,92428.0,0.002]
[1764899724883,0.02806268,92429.0,92428.0,0.21838464]
[1764899725398,0.02806268,92429.0,92428.0,0.002]
[1764899725630,0.24444498,92429.0,92428.0,0.002]
[1764899725811,0.02806268,92429.0,92428.0,0.002]
[1764899726256,0.24444498,92429.0,92428.0,0.002]
[1764899726839,0.35417394,92429.0,92428.0,0.002]
[1764899727385,0.33257394,92429.0,92428.0,0.002]
[1764899727936,0.24444498,92429.0,92428.0,0.002]
[1764899729239,0.24744498,92429.0,92428.0,0.002]
[1764899729404,0.21640249,92421.0,92419.0,0.01082028]
[1764899729816,0.21640295,92421.0,92418.0,0.0108204]
[1764899730033,0.21640295,92421.0,92418.0,0.22722623]
[1764899730237,0.21640129,92421.0,92418.0,0.22722623]
[1764899730595,0.22722134,92421.0,92418.0,0.22722623]
[1764899730798,0.004,92421.0,92419.0,0.001]
[1764899731042,0.01081981,92423.0,92421.0,0.21640014]
[1764899731419,0.22721145,92425.0,92422.0,0.21639869]
[1764899732027,0.22721145,92425.0,92422.0,0.21639834]
[1764899732832,0.01081958,92425.0,92423.0,0.21639531]
[1764899733516,0.01381958,92425.0,92423.0,0.21639531]
[1764899733740,0.23021153,92425.0,92423.0,0.21639531]
[1764899733941,0.01081958,92425.0,92423.0,0.21639531]
[1764899734281,0.01381958,92425.0,92423.0,0.21639531]
[1764899734530,0.02781958,92425.0,92423.0,0.21639531]
[1764899734974,0.244212,92425.0,92422.0,0.22721827]
[1764899735149,0.21639532,92424.0,92422.0,0.22721827]
[1764899735353,0.22721502,92424.0,92421.0,0.22722001]
[1764899736054,0.21640093,92422.0,92419.0,0.21640386]
[1764899736257,0.22722086,92422.0,92419.0,0.22722414]
[1764899736437,0.01081993,92422.0,92420.0,0.21640222]
[1764899736634,0.009,92424.0,92421.0,0.01082005]
[1764899736841,0.011,92424.0,92421.0,0.01082005]
[1764899737040,0.011,92424.0,92419.0,0.22722581]
[1764899737041,0.01081981,92423.0,92419.0,0.22722581]
[1764899737226,0.22722044,92422.0,92420.0,0.21640318]
[1764899737559,0.23521935,92422.0,92419.0,0.22722405]
[1764899737937,0.22721935,92422.0,92420.0,0.21640268]
[1764899738103,0.01081993,92422.0,92420.0,0.21640268]
[1764899738311,0.23522032,92423.0,92421.0,0.21640077]
[1764899738742,0.23522032,92423.0,92421.0,0.21640103]
[1764899738946,0.01082016,92420.0,92416.0,0.21641083]
[1764899739314,0.22722527,92420.0,92417.0,0.22722908]
[1764899740287,0.22922527,92420.0,92417.0,0.22722908]
[1764899740432,0.22722527,92420.0,92417.0,0.22722908]
[1764899740769,0.23022527,92420.0,92417.0,0.22722908]
[1764899741136,0.23022363,92420.0,92416.0,0.22723215]
[1764899741331,0.23022363,92420.0,92417.0,0.21640839]
[1764899742160,0.21640611,92419.0,92417.0,0.21640839]
[1764899742364,0.23022363,92420.0,92417.0,0.22722891]
[1764899742575,0.01382016,92420.0,92418.0,0.2164068]
[1764899742753,0.01382016,92420.0,92417.0,0.01082052]
[1764899742965,0.21640713,92419.0,92417.0,0.01082052]
[1764899743162,0.0108204,92418.0,92412.0,0.0108211]
[1764899743396,0.0216639,92413.0,92412.0,0.2272432]
[1764899746013,0.0236639,92413.0,92412.0,0.2272432]
[1764899754326,0.0236639,92413.0,92406.0,0.21643481]
[1764899754327,0.01082122,92411.0,92404.0,0.01082204]
[1764899754469,0.01082122,92411.0,92402.0,0.01105264]
[1764899754669,0.01082122,92411.0,92402.0,0.00023037]
[1764899754670,0.21644318,92403.0,92402.0,0.00023037]
[1764899756364,0.22444318,92403.0,92402.0,0.00023037]
[1764899756536,0.21644318,92403.0,92402.0,0.00023037]
[1764899756944,0.23144318,92403.0,92402.0,0.00023037]
[1764899757302,0.23344318,92403.0,92402.0,0.00023037]
[1764899758103,0.23144318,92403.0,92402.0,0.00023037]
[1764899758472,0.23444318,92403.0,92402.0,0.00023037]
[1764899758789,0.018,92403.0,92402.0,0.00023037]
[1764899759433,0.23444318,92403.0,92402.0,0.00023037]
[1764899763539,0.018,92403.0,92402.0,0.00023037]
[1764899763955,0.23444318,92403.0,92402.0,0.00023037]
[1764899767418,0.018,92403.0,92402.0,0.00023037]
[1764899767583,0.018,92403.0,92402.0,0.2166759]
[1764899767788,0.23444318,92403.0,92402.0,0.00023037]
[1764899768323,0.018,92403.0,92402.0,0.00023037]
[1764899768522,0.018,92403.0,92402.0,0.2166759]
[1764899768830,0.018,92403.0,92402.0,0.00023037]
[1764899769597,0.018,92403.0,92402.0,0.2166759]
[1764899772324,0.018,92403.0,92402.0,0.2567259]
[1764899775612,0.018,92403.0,92402.0,0.2166759]
[1764899776646,0.018,92403.0,92402.0,0.2567259]
[1764899777679,0.003,92403.0,92402.0,0.2567259]
[1764899777955,0.006,92403.0,92402.0,0.2567259]
[1764899778742,0.003,92403.0,92402.0,0.2567259]
[1764899778937,0.0216639,92415.0,92414.0,0.21641742]
[1764899779150,0.0216639,92415.0,92414.0,0.23192742]
[1764899779327,0.0216639,92415.0,92414.0,0.25646742]
[1764899779531,0.02206268,92429.0,92428.0,0.21638464]
[1764899779729,0.03217603,92429.0,92426.0,0.01081946]
[1764899779951,0.02206268,92429.0,92426.0,0.01081946]
[1764899780379,0.02206268,92429.0,92427.0,0.21638683]
[1764899780572,0.02206268,92429.0,92426.0,0.01081946]
[1764899780775,0.21638466,92428.0,92426.0,0.01081946]
[1764899781019,0.02606268,92429.0,92428.0,0.21638464]
[1764899781214,0.03617614,92429.0,92428.0,0.21638464]
[1764899781533,0.03617614,92429.0,92428.0,0.25643464]
[1764899781534,0.00439878,92429.0,92428.0,0.25643464]
[1764899781738,0.00439878,92429.0,92428.0,0.27351464]
[1764899781739,0.02439878,92429.0,92428.0,0.27351464]
[1764899781943,0.00039878,92429.0,92428.0,0.27351464]
[1764899782384,0.02439878,92429.0,92428.0,0.21638464]
[1764899782588,0.00439878,92429.0,92428.0,0.21638464]
[1764899782744,0.00039878,92429.0,92428.0,0.21638464]
[1764899783556,0.02206268,92429.0,92428.0,0.21638464]
[1764899783757,0.02506268,92429.0,92428.0,0.21838464]
[1764899784158,0.02206268,92429.0,92428.0,0.21638464]
[1764899784566,0.02606268,92429.0,92428.0,0.21838464]
[1764899788539,0.02606268,92429.0,92428.0,0.002]
[1764899788738,0.02606268,92429.0,92428.0,0.21838464]
[1764899788958,0.02606268,92429.0,92428.0,0.002]
[1764899789736,0.02206268,92429.0,92428.0,0.21638464]
[1764899790123,0.03006268,92429.0,92428.0,0.21738464]
[1764899790548,0.02506268,92429.0,92428.0,0.21638464]
[1764899790882,0.04206268,92429.0,92428.0,0.21738464]
[1764899791882,0.04206268,92429.0,92428.0,0.001]
[1764899792200,0.04206268,92429.0,92428.0,0.21738464]
[1764899793106,0.04206268,92429.0,92428.0,0.001]
[1764899794474,0.32104334,92429.0,92428.0,0.001]
[1764899794676,0.34264334,92429.0,92428.0,0.001]
[1764899795523,0.33964334,92429.0,92428.0,0.001]
[1764899795951,0.34364334,92429.0,92428.0,0.001]
[1764899796395,0.21640434,92420.0,92418.0,0.0108204]
[1764899796520,0.21640571,92419.0,92416.0,0.22723289]
[1764899796878,0.21640887,92418.0,92416.0,0.22723289]
[1764899797130,0.01082052,92417.0,92412.0,0.22724219]
[1764899797350,0.01082052,92417.0,92409.0,0.01082145]
[1764899797351,0.23808468,92413.0,92409.0,0.01082145]
[1764899797573,0.23808468,92413.0,92411.0,0.21642423]
[1764899797782,0.0216639,92413.0,92412.0,0.2164221]
[1764899798485,0.0108211,92412.0,92409.0,0.01082145]
[1764899798724,0.0108211,92412.0,92409.0,0.22725057]
[1764899798725,0.22724331,92412.0,92409.0,0.22725057]
[1764899798958,0.22724331,92412.0,92408.0,0.22725282]
[1764899798959,0.22724604,92411.0,92408.0,0.01082157]
[1764899799162,0.22724604,92411.0,92408.0,0.22725082]
[1764899799364,0.0108211,92412.0,92408.0,0.22725082]
[1764899799365,0.0108211,92412.0,92410.0,0.21642627]
[1764899799538,0.0216639,92413.0,92411.0,0.21642445]
[1764899799758,0.0236639,92413.0,92411.0,0.21642445]
[1764899799900,0.0216639,92413.0,92411.0,0.21642445]
[1764899800888,0.0236639,92413.0,92411.0,0.21642445]
[1764899801090,0.0236639,92413.0,92412.0,0.2164221]
[1764899801388,0.24008366,92413.0,92410.0,0.01082133]
[1764899802003,0.21642664,92411.0,92408.0,0.22725182]
[1764899803245,0.21842664,92411.0,92409.0,0.21642891]
[1764899803406,0.002,92411.0,92409.0,0.21642891]
[1764899803607,0.002,92411.0,92410.0,0.21642679]
[1764899804034,0.03248488,92413.0,92410.0,0.21642679]
[1764899804284,0.03248488,92413.0,92411.0,0.21642347]
[1764899804491,0.0216639,92413.0,92411.0,0.21642358]
[1764899804665,0.0216639,92413.0,92410.0,0.22724812]
[1764899804866,0.0216639,92413.0,92412.0,0.2164221]
[1764899805051,0.0216639,92413.0,92411.0,0.21642445]
[1764899805397,0.0216639,92413.0,92412.0,0.2164221]
[1764899805551,0.0216639,92413.0,92411.0,0.21642445]
[1764899805981,0.0216639,92413.0,92402.0,0.00023037]
[1764899806152,0.0216639,92413.0,92403.0,0.22726392]
[1764899806153,0.21643538,92407.0,92403.0,0.22726392]
[1764899806366,0.01082157,92408.0,92405.0,0.21643727]
[1764899806791,0.01082157,92408.0,92405.0,0.2164381]
[1764899806972,0.0324211,92412.0,92406.0,0.0108218]
[1764899807171,0.22724402,92412.0,92409.0,0.22724931]
[1764899807350,0.21642577,92411.0,92409.0,0.01082145]
[1764899807771,0.21642693,92410.0,92408.0,0.22725093]
[1764899807994,0.22724699,92411.0,92408.0,0.22725093]
[1764899808737,0.21642435,92412.0,92409.0,0.21642702]
[1764899808940,0.003,92411.0,92410.0,0.21642679]
[1764899809807,0.0216639,92413.0,92412.0,0.2164221]
[1764899810666,0.0216639,92413.0,92410.0,0.01082133]
[1764899810836,0.0216639,92413.0,92411.0,0.21642224]
[1764899811421,0.0216639,92413.0,92411.0,0.21642445]
[1764899811640,0.0216639,92413.0,92412.0,0.2164221]
[1764899811987,0.0246639,92413.0,92412.0,0.2164221]
[1764899812189,0.0246639,92413.0,92410.0,0.01082133]
[1764899812393,0.0216639,92413.0,92410.0,0.01082133]
[1764899812594,0.0386639,92413.0,92412.0,0.2164221]
[1764899813210,0.0246639,92413.0,92407.0,0.22725381]
[1764899813350,0.0216,92409.0,92408.0,0.22725304]
[1764899813550,0.0216,92409.0,92408.0,0.01082157]
[1764899813851,0.21642711,92410.0,92405.0,0.22725891]
[1764899813852,0.01082133,92410.0,92405.0,0.22725891]
[1764899814098,0.21643125,92409.0,92405.0,0.22725891]
[1764899814272,0.21643125,92409.0,92406.0,0.22725767]
[1764899814478,0.2272525,92410.0,92407.0,0.21643253]
[1764899814906,0.21642948,92409.0,92407.0,0.01082169]
[1764899815131,0.21642948,92409.0,92407.0,0.21643378]
[1764899815451,0.22725102,92409.0,92406.0,0.22725333]
[1764899815631,0.01082145,92409.0,92407.0,0.2164329]
[1764899815832,0.22725099,92409.0,92406.0,0.22725333]
[1764899816054,0.01082145,92409.0,92407.0,0.21643255]
[1764899816189,0.21643388,92407.0,92405.0,0.22726014]
[1764899816544,0.22725388,92408.0,92405.0,0.22726014]
[1764899816772,0.2402507,92409.0,92406.0,0.22725575]
[1764899816968,0.2402507,92409.0,92407.0,0.21643362]
[1764899817265,0.2432507,92409.0,92407.0,0.21643362]
[1764899817494,0.2432507,92409.0,92406.0,0.22725575]
[1764899817609,0.02682145,92409.0,92407.0,0.21643335]
[1764899817830,0.21643838,92406.0,92403.0,0.01082215]
[1764899818055,0.21643838,92406.0,92403.0,0.22726323]
[1764899818486,0.21643719,92406.0,92404.0,0.21644076]
[1764899818685,0.2164346,92407.0,92404.0,0.21644076]
[1764899818886,0.002,92406.0,92404.0,0.21644076]
[1764899819146,0.002,92406.0,92405.0,0.2164385]
[1764899819352,0.009,92406.0,92405.0,0.2164385]
[1764899819564,0.002,92406.0,92405.0,0.2164385]
[1764899820196,0.2272509,92409.0,92406.0,0.22725565]
[1764899820397,0.2272509,92409.0,92405.0,0.01082192]
[1764899820398,0.01082145,92409.0,92405.0,0.01082192]
[1764899820571,0.002,92406.0,92405.0,0.2272582]
[1764899821024,0.23525567,92407.0,92405.0,0.21643789]
[1764899821297,0.003,92406.0,92405.0,0.22725981]
[1764899821524,0.003,92406.0,92404.0,0.22726105]
[1764899821642,0.003,92406.0,92402.0,0.00023037]
[1764899821643,0.01082192,92405.0,92402.0,0.00023037]
[1764899822092,0.22726227,92405.0,92402.0,0.21667476]
[1764899822430,0.01082192,92405.0,92402.0,0.22749703]
[1764899822632,0.2164419,92404.0,92402.0,0.00023037]
[1764899822838,0.2272626,92405.0,92402.0,0.21667566]
[1764899823023,0.01082192,92405.0,92402.0,0.01105264]
[1764899823243,0.0188218,92406.0,92404.0,0.21643966]
[1764899823414,0.008,92406.0,92405.0,0.2323585]
[1764899824292,0.01082169,92407.0,92403.0,0.01082215]
[1764899824635,0.01082169,92407.0,92402.0,0.01105264]
[1764899824636,0.007,92405.0,92402.0,0.01105264]
[1764899824855,0.0138218,92406.0,92402.0,0.01105264]
[1764899825016,0.0138218,92406.0,92404.0,0.21644021]
[1764899825222,0.0258218,92406.0,92404.0,0.21644021]
[1764899825421,0.003,92406.0,92403.0,0.22726533]
[1764899825830,0.007,92405.0,92403.0,0.22726533]
[1764899825996,0.22725651,92407.0,92403.0,0.22726533]
[1764899826397,0.22925651,92407.0,92403.0,0.22726533]
[1764899826625,0.22925651,92407.0,92404.0,0.21644084]
[1764899827033,0.22925651,92407.0,92404.0,0.21643984]
[1764899827510,0.0188218,92406.0,92402.0,0.00023037]
[1764899827729,0.22726261,92405.0,92402.0,0.01105264]
[1764899827971,0.01082192,92405.0,92402.0,0.00023037]
[1764899828200,0.21644132,92404.0,92402.0,0.00023037]
[1764899828400,0.21644318,92403.0,92402.0,0.00023037]
[1764899828525,0.21644084,92404.0,92402.0,0.00023037]
[1764899828727,0.21644318,92403.0,92402.0,0.00023037]
[1764899828947,0.21644084,92404.0,92402.0,0.00023037]
[1764899828948,0.2164422,92404.0,92402.0,0.00023037]
[1764899829371,0.0108218,92406.0,92402.0,0.22749684]
[1764899829732,0.22726045,92405.0,92402.0,0.00023037]
[1764899829908,0.22726045,92405.0,92402.0,0.21667536]
[1764899830051,0.2164412,92404.0,92402.0,0.00023037]
[1764899830273,0.21644085,92404.0,92402.0,0.00023037]
[1764899830707,0.21844318,92403.0,92402.0,0.00023037]
[1764899831049,0.21644085,92404.0,92402.0,0.2166759]
[1764899831250,0.002,92404.0,92402.0,0.00023037]
[1764899831456,0.21644318,92403.0,92402.0,0.00023037]
[1764899831655,0.24817727,92403.0,92402.0,0.00023037]
[1764899831856,0.22857727,92403.0,92402.0,0.00023037]
[1764899832054,0.22657727,92403.0,92402.0,0.00023037]
[1764899832462,0.32128478,92403.0,92402.0,0.00023037]
[1764899832683,0.22657727,92403.0,92402.0,0.00023037]
[1764899833383,0.22957727,92403.0,92402.0,0.00023037]
[1764899833825,0.26517727,92403.0,92402.0,0.00023037]
[1764899834238,0.56657727,92403.0,92402.0,0.00023037]
[1764899834420,0.69788233,92403.0,92402.0,0.00023037]
[1764899834625,0.68388233,92403.0,92402.0,0.00023037]
[1764899835104,0.69788233,92403.0,92402.0,0.00023037]
[1764899835435,0.68388233,92403.0,92402.0,0.00023037]
[1764899835610,0.69788233,92403.0,92402.0,0.00023037]
[1764899835995,0.70088233,92403.0,92402.0,0.00023037]
[1764899836408,0.69788233,92403.0,92402.0,0.00023037]
[1764899836816,0.70188233,92403.0,92402.0,0.00023037]
[1764899838299,0.71270636,92403.0,92402.0,0.00023037]
[1764899848083,0.70257227,92403.0,92402.0,0.00023037]
[1764899848418,0.71267925,92403.0,92402.0,0.00023037]
[1764899849057,0.72975925,92403.0,92402.0,0.00023037]
[1764899853350,0.59845419,92403.0,92402.0,0.00023037]
[1764899853508,0.58137419,92403.0,92402.0,0.00023037]
[1764899853709,0.59845419,92403.0,92402.0,0.00023037]
[1764899854854,0.27545419,92403.0,92402.0,0.00023037]
[1764899855091,0.26463016,92403.0,92402.0,0.00023037]
[1764899855295,0.24755016,92403.0,92402.0,0.00023037]
[1764899855882,0.03110698,92403.0,92402.0,0.00023037]
[1764899856094,0.03110698,92403.0,92402.0,0.2166759]
[1764899857156,0.021,92403.0,92402.0,0.2166759]
[1764899857369,0.03111909,92403.0,92402.0,0.2558459]
[1764899857534,0.03111909,92403.0,92402.0,0.2331659]
[1764899858407,0.021,92403.0,92402.0,0.2331659]
[1764899859012,0.017,92403.0,92402.0,0.2331659]
[1764899859187,0.017,92403.0,92402.0,0.2558459]
[1764899859392,0.08,92404.0,92403.0,0.21644318]
[1764899859571,0.08,92404.0,92403.0,0.25561318]
[1764899859769,0.0216639,92413.0,92412.0,0.2164221]
[1764899859996,0.03178596,92413.0,92411.0,0.21642445]
[1764899860270,0.0216639,92413.0,92412.0,0.2164221]
[1764899860470,0.03178543,92413.0,92412.0,0.2164221]
[1764899861106,0.0216639,92413.0,92412.0,0.2164221]
[1764899861696,0.03478555,92413.0,92412.0,0.2164221]
[1764899862721,0.05178555,92413.0,92412.0,0.2164221]
[1764899864419,0.05178555,92413.0,92412.0,0.2555921]
[1764899864814,0.0416639,92413.0,92412.0,0.2555921]
[1764899866209,0.0416639,92413.0,92412.0,0.2329121]
[1764899868189,0.0416639,92413.0,92412.0,0.2164221]
[1764899868392,0.0416639,92413.0,92412.0,0.2555921]
[1764899868393,0.02,92413.0,92412.0,0.2555921]
[1764899875349,0.02,92413.0,92412.0,0.2329121]
[1764899875553,0.02,92413.0,92411.0,0.21642438]
[1764899875797,0.02,92413.0,92412.0,0.2164221]
[1764899876349,0.017,92413.0,92412.0,0.2164221]
[1764899876724,0.02,92413.0,92412.0,0.2164221]
[1764899877084,0.017,92413.0,92412.0,0.2164221]
[1764899877460,0.02,92413.0,92412.0,0.2164221]
[1764899880280,0.03082098,92413.0,92410.0,0.22724751]
[1764899880572,0.02,92413.0,92412.0,0.2164221]
[1764899880718,0.23641998,92413.0,92411.0,0.21642271]
[1764899880923,0.23641998,92413.0,92412.0,0.2574921]
[1764899880924,0.003,92413.0,92412.0,0.2574921]
[1764899881333,0.02,92413.0,92412.0,0.2574921]
[1764899881552,0.003,92413.0,92412.0,0.2574921]
[1764899881760,0.0216639,92415.0,92414.0,0.21641742]
[1764899882063,0.0216639,92415.0,92414.0,0.23264742]
[1764899882824,0.0246639,92415.0,92414.0,0.23264742]
[1764899883024,0.0246639,92415.0,92414.0,0.21641742]
[1764899883426,0.0246639,92415.0,92413.0,0.21641769]
[1764899883667,0.0246639,92415.0,92413.0,0.2164192]
[1764899884190,0.0396639,92415.0,92412.0,0.21642206]
[1764899884394,0.0246639,92415.0,92414.0,0.21641742]
[1764899884733,0.0366639,92415.0,92413.0,0.2164193]
[1764899884946,0.24107942,92415.0,92413.0,0.2164193]
[1764899885156,0.25607942,92415.0,92413.0,0.2164193]
[1764899885570,0.0246639,92415.0,92413.0,0.2164193]
[1764899885911,0.0246639,92415.0,92414.0,0.21641742]
[1764899887517,0.0396639,92415.0,92414.0,0.21641742]
[1764899887680,0.0366639,92415.0,92414.0,0.21641742]
[1764899888064,0.0396639,92415.0,92414.0,0.21641742]
[1764899889747,0.0396639,92415.0,92414.0,0.25734742]
[1764899890420,0.0396639,92415.0,92414.0,0.23297742]
[1764899890630,0.0396639,92415.0,92414.0,0.25734742]
[1764899892678,0.0396639,92415.0,92414.0,0.21641742]
[1764899894269,0.04979862,92415.0,92414.0,0.21641742]
[1764899895628,0.04979862,92415.0,92414.0,0.25734742]
[1764899895839,0.0396639,92415.0,92414.0,0.25734742]
[1764899896415,0.04980202,92415.0,92414.0,0.21641742]
[1764899897472,0.04980202,92415.0,92413.0,0.2164193]
[1764899897636,0.01013812,92414.0,92413.0,0.2164193]
[1764899898072,0.01013812,92414.0,92412.0,0.0108211]
[1764899898236,0.22655614,92414.0,92412.0,0.22724263]
[1764899898431,0.21641802,92414.0,92412.0,0.22724263]
[1764899898621,0.26689983,92415.0,92412.0,0.22724263]
[1764899898821,0.01013952,92414.0,92412.0,0.22724263]
[1764899899647,0.01013952,92414.0,92413.0,0.21641976]
[1764899900119,0.02814193,92414.0,92413.0,0.21641976]
[1764899900302,0.01314193,92414.0,92413.0,0.21641976]
[1764899900507,0.02514193,92414.0,92413.0,0.21641976]
[1764899900934,0.01314193,92414.0,92413.0,0.21641976]
[1764899901073,0.02814193,92414.0,92413.0,0.21641976]
[1764899901519,0.02814193,92414.0,92408.0,0.21642931]
[1764899901764,0.22724126,92413.0,92409.0,0.01082145]
[1764899902051,0.24523865,92414.0,92410.0,0.22724627]
[1764899902247,0.24523865,92414.0,92412.0,0.2164216]
[1764899902425,0.24523865,92414.0,92411.0,0.22724372]
[1764899902628,0.01382087,92414.0,92410.0,0.01082133]
[1764899902836,0.22724273,92413.0,92410.0,0.22724684]
[1764899904247,0.2272445,92412.0,92409.0,0.22724618]
[1764899904411,0.2272445,92412.0,92408.0,0.227253]
[1764899904813,0.019,92413.0,92412.0,0.2164221]
[1764899905089,0.0291436,92413.0,92412.0,0.2164221]
[1764899905471,0.019,92413.0,92412.0,0.2164221]